[Event "Chesscup Rapid 2020"]
[Site "Katowice"]
[Date "2020.09.13"]
[Round "4.8"]
[White "Kuzmicz, Krystian"]
[Black "Zima, Teofil"]
[Result "1-0"]
[ECO "B20"]
[WhiteElo "2468"]
[BlackElo "1897"]
[Annotator "RC"]
[PlyCount "109"]
[EventDate "2020.09.12"]
[EventType "swiss"]
[EventCountry "POL"]
[SourceTitle "playchess.com"]
[Source "ChessBase"]
[SourceQuality "1"]
[TimeControl "600+5"]

1. e4 {[%emt 0:00:00]} c5 {[%emt 0:00:03]} 2. d3 {[%emt 0:00:00]} Nc6 {[%emt 0:00:02]} 3. g3 {[%emt 0:00:00]} g6 {[%emt 0:00:03]} 4. Bg2 {[%emt 0:00:01]} Bg7 {[%emt 0:00:01]} 5. f4 {[%emt 0:00:01]} e6 {[%emt 0:00:56]} 6. Nf3 {[%emt 0:00:01]} Nge7 {[%emt 0:00:01]} 7. O-O {[%emt 0:00:02]} O-O {[%emt 0:00:12]} 8. c3 {[%emt 0:00:01]} b6 {[%emt 0:00:59]} 9. Na3 {[%emt 0:00:04]} Bb7 {[%emt 0:00:10]} 10. Nc2 {[%emt 0:00:07]} Rc8 {[%emt 0:00:32]} 11. Re1 {[%emt 0:00:02]} Qc7 {[%emt 0:00:13]} 12. Be3 {[%emt 0:00:06]} Rfd8 {[%emt 0:00:06]} 13. Bf2 {[%emt 0:00:02]} d6 {[%emt 0:00:35]} 14. Qd2 {[%emt 0:00:06]} a6 {[%emt 0:00:15]} 15. g4 {[%emt 0:00:32]} h6 {[%emt 0:00:43]} 16. Bh4 {[%emt 0:00:58]} Re8 {[%emt 0:00:10]} 17. Bh3 {[%emt 0:00:18]} b5 {[%emt 0:01:08]} 18. f5 {[%emt 0:00:43]} exf5 {[%emt 0:00:10]} 19. gxf5 {[%emt 0:00:04]} g5 {[%emt 0:00:27]} 20. Bg3 {[%emt 0:00:22]} Rcd8 {[%emt 0:00:10]} 21. Rf1 {[%emt 0:00:33]} b4 {[%emt 0:00:11]} 22. Nxg5 {[%emt 0:00:10]} bxc3 {[%emt 0:00:12]} 23. bxc3 {[%emt 0:00:01]} hxg5 {[%emt 0:00:29]} 24. f6 {[%emt 0:00:02]} Bh6 {[%emt 0:00:20]} 25. fxe7 {[%emt 0:00:01]} Nxe7 {[%emt 0:00:23]} 26. Ne3 {[%emt 0:00:11]} c4 {[%emt 0:00:14]} 27. Qf2 {[%emt 0:00:54]} Ng6 {[%emt 0:00:16]} 28. Nxc4 {[%emt 0:01:43]} Nf4 {[%emt 0:00:14]} 29. Bxf4 {[%emt 0:00:24]} gxf4 {[%emt 0:00:01]} 30. Rae1 {[%emt 0:02:12]} f6 {[%emt 0:01:09]} 31. Bg2 {[%emt 0:00:42]} Re7 {[%emt 0:00:08]} 32. Kh1 {[%emt 0:00:07]} Rh7 {[%emt 0:00:03]} 33. Bf3 {[%emt 0:00:07]} Bg5 {[%emt 0:00:03]} 34. Rg1 {[%emt 0:00:07]} Rdd7 {[%emt 0:00:32]} 35. Rg2 {[%emt 0:00:08]} Rdg7 {[%emt 0:00:13]} 36. Reg1 {[%emt 0:00:06]} Kf8 {[%emt 0:00:10]} 37. Qd4 {[%emt 0:00:12]} Rh3 {[%emt 0:00:41]} 38. Bg4 {[%emt 0:00:14]} Re3 {[%emt 0:00:13]} 39. Nxe3 {[%emt 0:00:09]} fxe3 {[%emt 0:00:01]} 40. Be6 {[%emt 0:00:15]} Qc5 {[%emt 0:00:33]} 41. Qxc5 {[%emt 0:00:48]} dxc5 {[%emt 0:00:00]} 42. Rxg5 {[%emt 0:00:27]} fxg5 {[%emt 0:00:05]} 43. Re1 {[%emt 0:00:06]} Re7 {[%emt 0:00:05]} 44. Bc4 {[%emt 0:00:04]} Bxe4+ {[%emt 0:00:11]} 45. dxe4 {[%emt 0:00:03]} Rxe4 {[%emt 0:00:00]} 46. Bd5 {[%emt 0:00:13]} Re5 {[%emt 0:00:07]} 47. c4 {[%emt 0:00:01]} Ke7 {[%emt 0:00:05]} 48. Kg2 {[%emt 0:00:01]} Kd6 {[%emt 0:00:02]} 49. Kf3 {[%emt 0:00:02]} a5 {[%emt 0:00:18]} 50. Rxe3 {[%emt 0:00:02]} g4+ 51. Kf4 {[%emt 0:00:05]} Rxe3 {[%emt 0:00:09]} 52. Kxe3 Ke5 53. a4 {[%emt 0:00:07]} Kf5 {[%emt 0:00:02]} 54. Bb7 {[%emt 0:00:02]} Kg5 {[%emt 0:00:08]} 55. Bc8 {[%emt 0:00:01]} 1-0